[Event "*** Titled Tuesday Blitz"]
[Site "Chess.com"]
[Date "2020.05.12"]
[Round "5"]
[White "PawnEatingZombie"]
[Black "larisakalinina"]
[Result "1-0"]
[WhiteElo "2172"]
[BlackElo "1999"]
[TimeControl "180+1"]
[EndTime "10:54:51 PDT"]
[Termination "PawnEatingZombie won by resignation"]

1. d4 {[%clk 0:03:00.9]} 1... d5 {[%clk 0:02:57.1]} 2. c4 {[%clk 0:03:00.6]}
2... e6 {[%clk 0:02:56.4]} 3. Nc3 {[%clk 0:03:01]} 3... Nf6 {[%clk 0:02:56.1]}
4. cxd5 {[%clk 0:03:01.5]} 4... exd5 {[%clk 0:02:54.7]} 5. Bg5 {[%clk
0:03:01.2]} 5... Be7 {[%clk 0:02:49.9]} 6. e3 {[%clk 0:03:01.2]} 6... h6 {[%clk
0:02:47.2]} 7. Bh4 {[%clk 0:03:00.2]} 7... Ne4 {[%clk 0:02:45.2]} 8. Bxe7 {[%clk
0:02:57.2]} 8... Kxe7 {[%clk 0:02:35.9]} 9. Nf3 {[%clk 0:02:36.9]} 9... Re8
{[%clk 0:02:35.5]} 10. Bd3 {[%clk 0:02:34.2]} 10... f5 {[%clk 0:02:24.2]} 11.
O-O {[%clk 0:02:31.7]} 11... Kf8 {[%clk 0:02:19.1]} 12. Ne5 {[%clk 0:02:30.7]}
12... Nc6 {[%clk 0:02:09.7]} 13. Ng6+ {[%clk 0:02:07.6]} 13... Kg8 {[%clk
0:02:08]} 14. Nf4 {[%clk 0:01:55.2]} 14... Ne7 {[%clk 0:01:41.2]} 15. f3 {[%clk
0:01:48.3]} 15... Nxc3 {[%clk 0:01:31.6]} 16. bxc3 {[%clk 0:01:49.2]} 16... g5
{[%clk 0:01:30.7]} 17. Nh5 {[%clk 0:01:43.4]} 17... Ng6 {[%clk 0:01:19.4]} 18.
e4 {[%clk 0:01:35.5]} 18... dxe4 {[%clk 0:01:18]} 19. fxe4 {[%clk 0:01:36]}
19... f4 {[%clk 0:01:03.5]} 20. e5 {[%clk 0:01:34.3]} 20... Nh4 {[%clk
0:00:53.9]} 21. Nf6+ {[%clk 0:01:31.6]} 21... Kg7 {[%clk 0:00:54.1]} 22. Nxe8+
{[%clk 0:01:27]} 22... Qxe8 {[%clk 0:00:53.9]} 23. g3 {[%clk 0:01:14.9]} 23...
Nf5 {[%clk 0:00:27.3]} 24. gxf4 {[%clk 0:01:04.4]} 24... Ne3 {[%clk 0:00:25.2]}
25. Qf3 {[%clk 0:00:58.7]} 25... Nxf1 {[%clk 0:00:24.7]} 26. Rxf1 {[%clk
0:00:55.4]} 26... g4 {[%clk 0:00:20.1]} 27. Qe4 {[%clk 0:00:55.2]} 27... Qf7
{[%clk 0:00:17.5]} 28. f5 {[%clk 0:00:52.9]} 28... Qh5 {[%clk 0:00:15]} 29. f6+
{[%clk 0:00:51.3]} 29... Kf8 {[%clk 0:00:15.4]} 30. Qh7 {[%clk 0:00:45]} 30...
Qf7 {[%clk 0:00:14]} 31. Qxh6+ {[%clk 0:00:44.9]} 31... Ke8 {[%clk 0:00:13.2]}
32. Bg6 {[%clk 0:00:39.5]} 1-0

[Event "*** Titled Tuesday Blitz"]
[Site "Chess.com"]
[Date "2020.05.12"]
[Round "5"]
[White "emiliocordova"]
[Black "2L8IWUN"]
[Result "0-1"]
[WhiteElo "2833"]
[BlackElo "2456"]
[TimeControl "180+1"]
[EndTime "10:54:52 PDT"]
[Termination "2L8IWUN won by resignation"]

1. d4 {[%clk 0:02:53.4]} 1... Nf6 {[%clk 0:02:59]} 2. Nf3 {[%clk 0:02:52.7]}
2... e6 {[%clk 0:02:59.9]} 3. c4 {[%clk 0:02:25]} 3... d5 {[%clk 0:02:59.3]} 4.
g3 {[%clk 0:02:16.1]} 4... dxc4 {[%clk 0:02:55.8]} 5. Bg2 {[%clk 0:02:12.7]}
5... a6 {[%clk 0:02:53.2]} 6. O-O {[%clk 0:02:09]} 6... Nc6 {[%clk 0:02:53.5]}
7. a4 {[%clk 0:02:07.9]} 7... Rb8 {[%clk 0:02:53.9]} 8. Bg5 {[%clk 0:02:02.3]}
8... Be7 {[%clk 0:02:47.7]} 9. Nc3 {[%clk 0:02:00.6]} 9... h6 {[%clk 0:02:45.7]}
10. Bxf6 {[%clk 0:01:54.4]} 10... Bxf6 {[%clk 0:02:46.6]} 11. e3 {[%clk
0:01:49.2]} 11... O-O {[%clk 0:02:42.7]} 12. Nd2 {[%clk 0:01:49]} 12... Na5
{[%clk 0:02:39.7]} 13. Qe2 {[%clk 0:01:42]} 13... e5 {[%clk 0:02:18.2]} 14. dxe5
{[%clk 0:01:35.3]} 14... Bxe5 {[%clk 0:02:19.1]} 15. Nxc4 {[%clk 0:01:27.3]}
15... Nxc4 {[%clk 0:02:20]} 16. Qxc4 {[%clk 0:01:27.2]} 16... c6 {[%clk
0:02:18.3]} 17. Rfd1 {[%clk 0:01:22.7]} 17... Qe7 {[%clk 0:02:16.7]} 18. a5
{[%clk 0:01:18.5]} 18... Be6 {[%clk 0:02:12.5]} 19. Qe4 {[%clk 0:01:17.7]} 19...
Bf6 {[%clk 0:02:08.8]} 20. Na4 {[%clk 0:01:02.5]} 20... Rfd8 {[%clk 0:02:07]}
21. Rxd8+ {[%clk 0:00:53.1]} 21... Rxd8 {[%clk 0:02:05.6]} 22. Rc1 {[%clk
0:00:52.8]} 22... Qd6 {[%clk 0:02:02.2]} 23. Bf3 {[%clk 0:00:44.2]} 23... Bd5
{[%clk 0:01:59.7]} 24. Qg4 {[%clk 0:00:33.9]} 24... Bxf3 {[%clk 0:01:58.5]} 25.
Qxf3 {[%clk 0:00:34.8]} 25... Qb4 {[%clk 0:01:59.2]} 26. Nc5 {[%clk 0:00:30]}
26... Bxb2 {[%clk 0:01:55.8]} 27. Rc2 {[%clk 0:00:29]} 27... Bf6 {[%clk
0:01:54.2]} 28. Kg2 {[%clk 0:00:28.5]} 28... Be7 {[%clk 0:01:49.7]} 29. Ne4
{[%clk 0:00:14]} 29... Qxa5 {[%clk 0:01:48.7]} 30. g4 {[%clk 0:00:14.3]} 30...
Qd5 {[%clk 0:01:45.2]} 31. Rd2 {[%clk 0:00:14]} 31... Qe5 {[%clk 0:01:36.8]} 32.
Rxd8+ {[%clk 0:00:11.9]} 32... Bxd8 {[%clk 0:01:37.7]} 33. Ng3 {[%clk
0:00:11.5]} 33... a5 {[%clk 0:01:35.3]} 34. Qe2 {[%clk 0:00:11.5]} 34... a4
{[%clk 0:01:34.2]} 35. f3 {[%clk 0:00:11.7]} 35... a3 {[%clk 0:01:32.4]} 36. Qd3
{[%clk 0:00:11.7]} 36... Qb2+ {[%clk 0:01:30.6]} 37. Kh3 {[%clk 0:00:12]} 37...
a2 {[%clk 0:01:29.2]} 38. Qxd8+ {[%clk 0:00:11.6]} 38... Kh7 {[%clk 0:01:29.3]}
39. Qd3+ {[%clk 0:00:09.3]} 39... g6 {[%clk 0:01:27.6]} 0-1

[Event "*** Titled Tuesday Blitz"]
[Site "Chess.com"]
[Date "2020.05.12"]
[Round "5"]
[White "Nikithebest"]
[Black "AniJak"]
[Result "1-0"]
[WhiteElo "2397"]
[BlackElo "2224"]
[TimeControl "180+1"]
[EndTime "10:54:52 PDT"]
[Termination "Nikithebest won by resignation"]

1. e4 {[%clk 0:03:00.9]} 1... c6 {[%clk 0:02:59.6]} 2. d4 {[%clk 0:03:00.6]}
2... d5 {[%clk 0:02:59.6]} 3. f3 {[%clk 0:03:01.3]} 3... dxe4 {[%clk 0:02:57.9]}
4. fxe4 {[%clk 0:03:00.7]} 4... e5 {[%clk 0:02:58.2]} 5. Nf3 {[%clk 0:03:01.4]}
5... exd4 {[%clk 0:02:56.9]} 6. Bc4 {[%clk 0:03:01.1]} 6... Nd7 {[%clk 0:02:42]}
7. O-O {[%clk 0:02:53.3]} 7... Ngf6 {[%clk 0:02:31.1]} 8. Ng5 {[%clk 0:02:29.6]}
8... Ne5 {[%clk 0:02:28.7]} 9. Nxf7 {[%clk 0:02:29.7]} 9... Nxf7 {[%clk
0:02:25.3]} 10. Bxf7+ {[%clk 0:02:28.7]} 10... Kxf7 {[%clk 0:02:25.4]} 11. e5
{[%clk 0:02:28.8]} 11... Be7 {[%clk 0:02:02.6]} 12. Bg5 {[%clk 0:02:10.5]} 12...
d3 {[%clk 0:01:54.2]} 13. exf6 {[%clk 0:02:00.9]} 13... Bxf6 {[%clk 0:01:42.2]}
14. Bxf6 {[%clk 0:01:58.5]} 14... gxf6 {[%clk 0:01:40.4]} 15. cxd3 {[%clk
0:01:47.2]} 15... Qd4+ {[%clk 0:01:33]} 16. Kh1 {[%clk 0:01:46.3]} 16... Bg4
{[%clk 0:01:33.3]} 17. Qb3+ {[%clk 0:01:44]} 17... Kg6 {[%clk 0:01:31.7]} 18.
Nc3 {[%clk 0:01:34.9]} 18... Qxd3 {[%clk 0:01:19.8]} 19. h3 {[%clk 0:01:31.5]}
19... Bh5 {[%clk 0:01:16.6]} 20. Ne4 {[%clk 0:01:07.9]} 20... Qxe4 {[%clk
0:01:09.1]} 21. Qg3+ {[%clk 0:01:07.3]} 21... Kh6 {[%clk 0:01:03.1]} 22. Rxf6+
{[%clk 0:01:05.4]} 22... Bg6 {[%clk 0:01:02.2]} 23. Rf4 {[%clk 0:01:02.5]} 23...
Qe7 {[%clk 0:00:44]} 24. Re1 {[%clk 0:00:59.4]} 24... Qd7 {[%clk 0:00:43.9]} 25.
Qh4+ {[%clk 0:00:55.8]} 25... Kg7 {[%clk 0:00:40.9]} 26. Re7+ {[%clk 0:00:55.7]}
26... Qxe7 {[%clk 0:00:40.5]} 27. Qxe7+ {[%clk 0:00:56.6]} 27... Kg8 {[%clk
0:00:38.6]} 28. Qxb7 {[%clk 0:00:54.3]} 28... Re8 {[%clk 0:00:35.2]} 29. Qxa7
{[%clk 0:00:51.3]} 29... Re1+ {[%clk 0:00:22.4]} 30. Kh2 {[%clk 0:00:49.8]}
30... Re8 {[%clk 0:00:23.3]} 31. Qd7 {[%clk 0:00:47.4]} 31... Re2 {[%clk
0:00:20]} 32. a4 {[%clk 0:00:41.8]} 32... Rxb2 {[%clk 0:00:19]} 33. Qd8+ {[%clk
0:00:36.9]} 33... Kg7 {[%clk 0:00:17.3]} 34. Qd4+ {[%clk 0:00:37.5]} 1-0

[Event "*** Titled Tuesday Blitz"]
[Site "Chess.com"]
[Date "2020.05.12"]
[Round "5"]
[White "Radzio1987"]
[Black "StephenDedalus83"]
[Result "1/2-1/2"]
[WhiteElo "2876"]
[BlackElo "2733"]
[TimeControl "180+1"]
[EndTime "10:54:53 PDT"]
[Termination "Game drawn by repetition"]

1. c4 {[%clk 0:03:00.9]} 1... g6 {[%clk 0:02:58.8]} 2. d4 {[%clk 0:03:00.5]}
2... Bg7 {[%clk 0:02:59.2]} 3. g3 {[%clk 0:03:00.9]} 3... d6 {[%clk 0:02:58.6]}
4. Nf3 {[%clk 0:02:59.2]} 4... Nd7 {[%clk 0:02:58.6]} 5. Nc3 {[%clk 0:02:58.6]}
5... e5 {[%clk 0:02:58.5]} 6. Bg2 {[%clk 0:02:58.8]} 6... Ne7 {[%clk 0:02:58.2]}
7. e4 {[%clk 0:02:58.8]} 7... exd4 {[%clk 0:02:57.1]} 8. Nxd4 {[%clk 0:02:58.5]}
8... O-O {[%clk 0:02:57.6]} 9. Be3 {[%clk 0:02:57.7]} 9... Nc6 {[%clk
0:02:57.3]} 10. f4 {[%clk 0:02:38.1]} 10... Nxd4 {[%clk 0:02:24.9]} 11. Bxd4
{[%clk 0:02:37.7]} 11... Bxd4 {[%clk 0:02:24.8]} 12. Qxd4 {[%clk 0:02:38.6]}
12... Nc5 {[%clk 0:02:24.9]} 13. O-O {[%clk 0:02:34.8]} 13... Ne6 {[%clk
0:01:48.7]} 14. Qe3 {[%clk 0:02:33]} 14... Ng7 {[%clk 0:01:42.9]} 15. Rad1
{[%clk 0:02:30.7]} 15... Be6 {[%clk 0:01:36.8]} 16. c5 {[%clk 0:02:24.5]} 16...
Qe7 {[%clk 0:01:34.5]} 17. cxd6 {[%clk 0:02:23.6]} 17... cxd6 {[%clk 0:01:34.6]}
18. Qd4 {[%clk 0:02:17.2]} 18... Rfd8 {[%clk 0:01:31]} 19. Rde1 {[%clk
0:02:14.5]} 19... Qc7 {[%clk 0:01:16.2]} 20. Kh1 {[%clk 0:01:49.9]} 20... Qc5
{[%clk 0:01:15.3]} 21. Qf6 {[%clk 0:01:48.5]} 21... Ne8 {[%clk 0:01:14]} 22. Qe7
{[%clk 0:01:41.4]} 22... Qc7 {[%clk 0:01:11.9]} 23. Qh4 {[%clk 0:01:41]} 23...
Bc4 {[%clk 0:01:07.5]} 24. Rf2 {[%clk 0:01:38.5]} 24... f6 {[%clk 0:01:07.4]}
25. Rd2 {[%clk 0:01:32.3]} 25... Qf7 {[%clk 0:01:02.6]} 26. Red1 {[%clk
0:01:24.4]} 26... Bxa2 {[%clk 0:00:54]} 27. Nxa2 {[%clk 0:01:17.3]} 27... Qxa2
{[%clk 0:00:53.6]} 28. e5 {[%clk 0:01:17.7]} 28... Kg7 {[%clk 0:00:52.1]} 29.
exd6 {[%clk 0:00:55.6]} 29... Rd7 {[%clk 0:00:51.8]} 30. Bd5 {[%clk 0:00:41.2]}
30... Qa5 {[%clk 0:00:48.1]} 31. Be6 {[%clk 0:00:39.8]} 31... Rxd6 {[%clk
0:00:38.8]} 32. Rxd6 {[%clk 0:00:37.5]} 32... Nxd6 {[%clk 0:00:38.7]} 33. Rxd6
{[%clk 0:00:31.4]} 33... Qe1+ {[%clk 0:00:38.1]} 34. Kg2 {[%clk 0:00:31.5]}
34... Qe2+ {[%clk 0:00:38.2]} 35. Kg1 {[%clk 0:00:30.4]} 35... Qe1+ {[%clk
0:00:36.4]} 36. Kg2 {[%clk 0:00:30.6]} 36... Qe2+ {[%clk 0:00:34.3]} 37. Kg1
{[%clk 0:00:29.7]} 37... Qe1+ {[%clk 0:00:34.4]} 38. Kg2 {[%clk 0:00:30]}
1/2-1/2

[Event "*** Titled Tuesday Blitz"]
[Site "Chess.com"]
[Date "2020.05.12"]
[Round "5"]
[White "Grineva_Marianna"]
[Black "slowdgehammer"]
[Result "0-1"]
[WhiteElo "2118"]
[BlackElo "2382"]
[TimeControl "180+1"]
[EndTime "10:54:54 PDT"]
[Termination "slowdgehammer won by resignation"]

1. d4 {[%clk 0:03:00.9]} 1... Nf6 {[%clk 0:02:59.6]} 2. c4 {[%clk 0:03:01]} 2...
g6 {[%clk 0:03:00.3]} 3. Nc3 {[%clk 0:03:01.2]} 3... Bg7 {[%clk 0:03:00.8]} 4.
e4 {[%clk 0:03:00.4]} 4... d6 {[%clk 0:03:01.4]} 5. f3 {[%clk 0:03:00.3]} 5...
O-O {[%clk 0:03:01.9]} 6. Bg5 {[%clk 0:03:00.3]} 6... c5 {[%clk 0:03:00.7]} 7.
d5 {[%clk 0:03:00.5]} 7... e6 {[%clk 0:03:01.3]} 8. Nge2 {[%clk 0:02:47]} 8...
exd5 {[%clk 0:03:00.6]} 9. Nxd5 {[%clk 0:02:47]} 9... Be6 {[%clk 0:02:29.5]} 10.
Nec3 {[%clk 0:02:42.4]} 10... Nc6 {[%clk 0:02:29.3]} 11. Bd3 {[%clk 0:02:29.7]}
11... h6 {[%clk 0:02:18.3]} 12. Be3 {[%clk 0:02:14.8]} 12... Bxd5 {[%clk
0:02:16.6]} 13. cxd5 {[%clk 0:02:09]} 13... Ne5 {[%clk 0:02:14.9]} 14. O-O
{[%clk 0:02:07.8]} 14... c4 {[%clk 0:02:13.9]} 15. Be2 {[%clk 0:02:07.6]} 15...
Rc8 {[%clk 0:02:13.6]} 16. Bd4 {[%clk 0:02:03.7]} 16... Re8 {[%clk 0:02:03.4]}
17. Kh1 {[%clk 0:02:03.8]} 17... a6 {[%clk 0:01:58.6]} 18. Qd2 {[%clk
0:01:58.8]} 18... b5 {[%clk 0:01:56.9]} 19. a3 {[%clk 0:01:59.1]} 19... h5
{[%clk 0:01:51.9]} 20. Rad1 {[%clk 0:01:50.4]} 20... Qe7 {[%clk 0:01:28.7]} 21.
Qf4 {[%clk 0:01:30.4]} 21... Nfd7 {[%clk 0:01:24.2]} 22. Rfe1 {[%clk 0:01:18.3]}
22... Nc5 {[%clk 0:01:23.6]} 23. Qg3 {[%clk 0:01:03.2]} 23... h4 {[%clk
0:01:23.4]} 24. Qh3 {[%clk 0:00:59.2]} 24... Ncd3 {[%clk 0:01:23.6]} 25. Bxd3
{[%clk 0:00:56.7]} 25... Nxd3 {[%clk 0:01:23.7]} 26. Rxd3 {[%clk 0:00:44.7]}
26... cxd3 {[%clk 0:01:24.6]} 27. Be3 {[%clk 0:00:42.6]} 27... Qb7 {[%clk
0:01:05.8]} 28. Rd1 {[%clk 0:00:40.9]} 28... b4 {[%clk 0:01:05.7]} 29. axb4
{[%clk 0:00:31.2]} 29... Qxb4 {[%clk 0:01:06.6]} 30. Rxd3 {[%clk 0:00:28.9]}
30... Qxb2 {[%clk 0:00:55.7]} 31. Nd1 {[%clk 0:00:28.9]} 31... Qe2 {[%clk
0:00:53.1]} 32. Rd2 {[%clk 0:00:20.3]} 32... Qe1+ {[%clk 0:00:52]} 33. Bg1
{[%clk 0:00:20.5]} 33... Qxd2 {[%clk 0:00:51.9]} 34. Nf2 {[%clk 0:00:20.3]}
34... Rc1 {[%clk 0:00:47.3]} 35. g4 {[%clk 0:00:15.1]} 35... Qxf2 {[%clk
0:00:43.5]} 0-1

[Event "*** Titled Tuesday Blitz"]
[Site "Chess.com"]
[Date "2020.05.12"]
[Round "5"]
[White "mikolka1985"]
[Black "swimmerchess"]
[Result "0-1"]
[WhiteElo "2631"]
[BlackElo "2841"]
[TimeControl "180+1"]
[EndTime "10:54:55 PDT"]
[Termination "swimmerchess won on time"]

1. d4 {[%clk 0:03:00.9]} 1... Nf6 {[%clk 0:02:59.9]} 2. c4 {[%clk 0:02:59.9]}
2... g6 {[%clk 0:03:00.4]} 3. g3 {[%clk 0:02:58.8]} 3... Bg7 {[%clk 0:03:00.6]}
4. Bg2 {[%clk 0:02:59.3]} 4... O-O {[%clk 0:03:01.5]} 5. Nc3 {[%clk 0:02:58.5]}
5... d6 {[%clk 0:03:02.4]} 6. Nf3 {[%clk 0:02:57.6]} 6... Nbd7 {[%clk
0:03:03.3]} 7. O-O {[%clk 0:02:56.5]} 7... e5 {[%clk 0:03:04.2]} 8. e4 {[%clk
0:02:55.3]} 8... c6 {[%clk 0:03:04.4]} 9. b3 {[%clk 0:02:54.1]} 9... Re8 {[%clk
0:02:53.1]} 10. h3 {[%clk 0:02:50.6]} 10... a6 {[%clk 0:02:47.9]} 11. d5 {[%clk
0:02:46.3]} 11... cxd5 {[%clk 0:02:46.3]} 12. cxd5 {[%clk 0:02:44.6]} 12... b5
{[%clk 0:02:46.5]} 13. Ne1 {[%clk 0:02:38.3]} 13... Bb7 {[%clk 0:02:45.8]} 14.
Nd3 {[%clk 0:02:37]} 14... Rc8 {[%clk 0:02:45.7]} 15. Bd2 {[%clk 0:02:31.3]}
15... Qb6 {[%clk 0:02:38.5]} 16. a4 {[%clk 0:02:28.1]} 16... Qd4 {[%clk
0:02:23.2]} 17. Qe2 {[%clk 0:01:41.9]} 17... Rxc3 {[%clk 0:02:22.5]} 18. Bxc3
{[%clk 0:01:41.1]} 18... Qxc3 {[%clk 0:02:23.4]} 19. Rfc1 {[%clk 0:01:40.4]}
19... Qxb3 {[%clk 0:02:17.4]} 20. a5 {[%clk 0:01:36.5]} 20... Bh6 {[%clk
0:02:02.3]} 21. Rc7 {[%clk 0:01:34]} 21... Rb8 {[%clk 0:01:48]} 22. h4 {[%clk
0:01:27.7]} 22... Bc8 {[%clk 0:01:24.8]} 23. Bh3 {[%clk 0:01:13.7]} 23... Ne8
{[%clk 0:01:24.2]} 24. Rxc8 {[%clk 0:00:40.6]} 24... Rxc8 {[%clk 0:01:22.8]} 25.
Bxd7 {[%clk 0:00:40.3]} 25... Rc2 {[%clk 0:01:15.9]} 26. Qf3 {[%clk 0:00:37.8]}
26... Qc3 {[%clk 0:01:03.8]} 27. Bxe8 {[%clk 0:00:27.9]} 27... Qxa1+ {[%clk
0:01:03.6]} 28. Kg2 {[%clk 0:00:26.8]} 28... Rc7 {[%clk 0:01:04.5]} 29. Nb4
{[%clk 0:00:23.6]} 29... Qc3 {[%clk 0:01:01.5]} 30. Nxa6 {[%clk 0:00:19.4]}
30... Qxf3+ {[%clk 0:01:00.4]} 31. Kxf3 {[%clk 0:00:19]} 31... Rc3+ {[%clk
0:01:01.3]} 32. Ke2 {[%clk 0:00:17.4]} 32... Ra3 {[%clk 0:01:01.7]} 33. Bxb5
{[%clk 0:00:13.2]} 33... Rxa5 {[%clk 0:01:01.8]} 34. Bd3 {[%clk 0:00:11.8]}
34... Kf8 {[%clk 0:01:00.6]} 0-1

[Event "*** Titled Tuesday Blitz"]
[Site "Chess.com"]
[Date "2020.05.12"]
[Round "5"]
[White "MariaFominykh"]
[Black "Srisshhhtea"]
[Result "1/2-1/2"]
[WhiteElo "2362"]
[BlackElo "2126"]
[TimeControl "180+1"]
[EndTime "10:54:56 PDT"]
[Termination "Game drawn by repetition"]

1. d4 {[%clk 0:03:00.9]} 1... Nf6 {[%clk 0:02:58.1]} 2. c4 {[%clk 0:02:59]} 2...
e6 {[%clk 0:02:56.3]} 3. Nf3 {[%clk 0:02:58.3]} 3... b6 {[%clk 0:02:53.3]} 4. g3
{[%clk 0:02:57.4]} 4... Bb7 {[%clk 0:02:52.6]} 5. Bg2 {[%clk 0:02:57.4]} 5...
Bb4+ {[%clk 0:02:53.2]} 6. Bd2 {[%clk 0:02:56.6]} 6... Qe7 {[%clk 0:02:53.8]} 7.
O-O {[%clk 0:02:56.3]} 7... Bxd2 {[%clk 0:02:51.5]} 8. Nbxd2 {[%clk 0:02:52.2]}
8... O-O {[%clk 0:02:50.2]} 9. Qc2 {[%clk 0:02:50.6]} 9... d6 {[%clk 0:02:39.9]}
10. e4 {[%clk 0:02:47.7]} 10... Nbd7 {[%clk 0:02:38.5]} 11. b4 {[%clk 0:02:42]}
11... e5 {[%clk 0:02:37.3]} 12. d5 {[%clk 0:02:40.9]} 12... a5 {[%clk
0:02:35.6]} 13. a3 {[%clk 0:02:39.5]} 13... g6 {[%clk 0:02:32.2]} 14. Rab1
{[%clk 0:02:32.7]} 14... axb4 {[%clk 0:02:27]} 15. axb4 {[%clk 0:02:32]} 15...
Nh5 {[%clk 0:02:23.9]} 16. Ne1 {[%clk 0:02:23.3]} 16... Ng7 {[%clk 0:02:22.1]}
17. Nd3 {[%clk 0:02:19.7]} 17... f5 {[%clk 0:02:16.5]} 18. f4 {[%clk 0:02:17.3]}
18... Ra3 {[%clk 0:01:53.4]} 19. Ra1 {[%clk 0:01:55]} 19... Rfa8 {[%clk
0:01:50.8]} 20. Qb2 {[%clk 0:01:41.3]} 20... Rxd3 {[%clk 0:01:48.7]} 21. Rxa8+
{[%clk 0:01:34.5]} 21... Bxa8 {[%clk 0:01:49.6]} 22. Ra1 {[%clk 0:01:32.1]}
22... Qe8 {[%clk 0:01:42.8]} 23. Qc2 {[%clk 0:01:09.3]} 23... Rd4 {[%clk
0:01:38.7]} 24. Nb3 {[%clk 0:00:50]} 24... fxe4 {[%clk 0:01:36.7]} 25. Nxd4
{[%clk 0:00:32.1]} 25... exd4 {[%clk 0:01:35.9]} 26. Qxe4 {[%clk 0:00:31.4]}
26... Qd8 {[%clk 0:01:33.4]} 27. Bh3 {[%clk 0:00:26.1]} 27... Nf6 {[%clk
0:01:30.5]} 28. Qxd4 {[%clk 0:00:23.4]} 28... Bb7 {[%clk 0:01:29.7]} 29. Ra7
{[%clk 0:00:20.6]} 29... Qb8 {[%clk 0:01:21.9]} 30. Rxb7 {[%clk 0:00:20.1]}
30... Qxb7 {[%clk 0:01:22.5]} 31. Qxf6 {[%clk 0:00:20.5]} 31... Qa8 {[%clk
0:01:20.8]} 32. Be6+ {[%clk 0:00:18.9]} 32... Nxe6 {[%clk 0:01:19.8]} 33. Qxe6+
{[%clk 0:00:19]} 33... Kh8 {[%clk 0:01:19.3]} 34. Qf6+ {[%clk 0:00:18.8]} 34...
Kg8 {[%clk 0:01:19.4]} 35. Qe6+ {[%clk 0:00:18.7]} 35... Kh8 {[%clk 0:01:19.5]}
36. Qf6+ {[%clk 0:00:18.1]} 36... Kg8 {[%clk 0:01:19.7]} 37. Qe7 {[%clk
0:00:17.8]} 37... Qa1+ {[%clk 0:01:18.4]} 38. Kg2 {[%clk 0:00:17.8]} 38... Qa2+
{[%clk 0:01:14.4]} 39. Kh3 {[%clk 0:00:16.9]} 39... Qxc4 {[%clk 0:01:14.5]} 40.
Qe8+ {[%clk 0:00:15.4]} 40... Kg7 {[%clk 0:01:14.8]} 41. Qe7+ {[%clk 0:00:15.4]}
41... Kg8 {[%clk 0:01:15.1]} 42. Qe8+ {[%clk 0:00:15.3]} 42... Kg7 {[%clk
0:01:15.7]} 43. Qe7+ {[%clk 0:00:15.3]} 43... Kg8 {[%clk 0:01:13.2]} 1/2-1/2

[Event "*** Titled Tuesday Blitz"]
[Site "Chess.com"]
[Date "2020.05.12"]
[Round "5"]
[White "ketster"]
[Black "MoreChessJulia"]
[Result "1-0"]
[WhiteElo "2281"]
[BlackElo "1787"]
[TimeControl "180+1"]
[EndTime "10:54:56 PDT"]
[Termination "ketster won by resignation"]

1. d4 {[%clk 0:02:57.3]} 1... c6 {[%clk 0:02:59.2]} 2. c4 {[%clk 0:02:56.4]}
2... d6 {[%clk 0:02:58.2]} 3. Nc3 {[%clk 0:02:54.9]} 3... Nf6 {[%clk 0:02:56]}
4. e4 {[%clk 0:02:53.9]} 4... a6 {[%clk 0:02:52.8]} 5. Nf3 {[%clk 0:02:48.2]}
5... Bg4 {[%clk 0:02:51]} 6. Be2 {[%clk 0:02:46.4]} 6... Bxf3 {[%clk 0:02:48.8]}
7. Bxf3 {[%clk 0:02:45.8]} 7... Nbd7 {[%clk 0:02:48.6]} 8. O-O {[%clk
0:02:40.7]} 8... e5 {[%clk 0:02:48]} 9. Be3 {[%clk 0:02:40.8]} 9... Be7 {[%clk
0:02:45]} 10. Qc2 {[%clk 0:02:39.3]} 10... b5 {[%clk 0:02:43.6]} 11. cxb5 {[%clk
0:02:38.2]} 11... axb5 {[%clk 0:02:41.9]} 12. a3 {[%clk 0:02:38.1]} 12... O-O
{[%clk 0:02:40.7]} 13. Rad1 {[%clk 0:02:37.6]} 13... Qc7 {[%clk 0:02:35.6]} 14.
Ne2 {[%clk 0:02:26]} 14... Rfc8 {[%clk 0:02:30.2]} 15. Ng3 {[%clk 0:02:24.9]}
15... Bf8 {[%clk 0:02:26.8]} 16. Be2 {[%clk 0:02:16]} 16... c5 {[%clk 0:02:25]}
17. dxe5 {[%clk 0:02:11.7]} 17... Nxe5 {[%clk 0:02:22]} 18. h3 {[%clk
0:02:06.5]} 18... Rcb8 {[%clk 0:02:18.7]} 19. f4 {[%clk 0:02:04.8]} 19... Ned7
{[%clk 0:02:16.2]} 20. Bf3 {[%clk 0:02:04.7]} 20... Ra7 {[%clk 0:02:12.6]} 21.
Nf5 {[%clk 0:01:15.2]} 21... b4 {[%clk 0:02:09.4]} 22. axb4 {[%clk 0:01:14.2]}
22... Rxb4 {[%clk 0:02:00.9]} 23. Bd2 {[%clk 0:01:14.1]} 23... Rb6 {[%clk
0:01:57.6]} 24. Bc3 {[%clk 0:01:11.5]} 24... g6 {[%clk 0:01:50.6]} 25. Ne3
{[%clk 0:01:10.7]} 25... Bg7 {[%clk 0:01:38.8]} 26. Nc4 {[%clk 0:01:07.6]} 26...
Ne8 {[%clk 0:01:31.9]} 27. Nxb6 {[%clk 0:01:06]} 27... Qxb6 {[%clk 0:01:31.8]}
28. Kh1 {[%clk 0:00:58.4]} 28... Bh6 {[%clk 0:01:25.6]} 29. Be2 {[%clk
0:00:49.2]} 29... Nf8 {[%clk 0:01:18.7]} 30. Bc4 {[%clk 0:00:48.3]} 30... Ne6
{[%clk 0:01:15.7]} 31. f5 {[%clk 0:00:43]} 31... Nd4 {[%clk 0:01:07.6]} 32. Qf2
{[%clk 0:00:42.4]} 32... Bg7 {[%clk 0:00:56.4]} 33. fxg6 {[%clk 0:00:42.1]} 1-0